[Event "AI Cup Div-3 2023"]
[Site "Online"]
[Date "2023.09.27"]
[Round "54.1"]
[White "Martinez Alcantara, Jose Eduardo"]
[Black "Demchenko, Anton"]
[Result "0-1"]
[Annotator "ChessBase"]
[ECO "C75"]
[WhiteElo "2611"]
[BlackElo "2608"]
[PlyCount "138"]
[EventDate "2023.09.18"]
[EventType "k.o."]
[EventCountry "NET"]
[SourceTitle "playchess.com"]
[Source "ChessBase"]
[SourceQuality "1"]
[TimeControl "900+3"]

1. e4 {[%emt 0:00:04]} e5 {[%emt 0:00:05]} 2. Nf3 {[%emt 0:00:01]} Nc6 {[%emt 0:00:01]} 3. Bb5 {[%emt 0:00:01]} a6 {[%emt 0:00:01]} 4. Ba4 {[%emt 0:00:01]} Nge7 {[%emt 0:00:03]} 5. O-O {[%emt 0:00:04]} Ng6 {[%emt 0:00:02]} 6. c3 {[%emt 0:00:01]} d6 {[%emt 0:00:01]} 7. d4 {[%emt 0:00:01]} Bd7 {[%emt 0:00:01]} 8. d5 {[%emt 0:00:43]} Nb8 {[%emt 0:00:02]} 9. c4 {[%emt 0:00:01]} Be7 {[%emt 0:00:01]} 10. Nc3 {[%emt 0:00:01]} O-O {[%emt 0:00:01]} 11. Bc2 {[%emt 0:00:01]} Qc8 {[%emt 0:00:09]} 12. Be3 {[%emt 0:00:16]} f5 {[%emt 0:00:03]} 13. exf5 {[%emt 0:00:01]} Bxf5 {[%emt 0:00:02]} 14. Nd2 {[%emt 0:00:35]} Bxc2 {[%emt 0:00:30]} 15. Qxc2 {[%emt 0:00:04]} Nh4 {[%emt 0:00:04]} 16. g3 {[%emt 0:00:34]} Nf5 {[%emt 0:00:13]} 17. Nde4 {[%emt 0:00:01]} Nd7 {[%emt 0:00:14]} 18. Qd3 {[%emt 0:00:02]} Qe8 {[%emt 0:00:09]} 19. b4 {[%emt 0:00:51]} Qg6 {[%emt 0:00:10]} 20. Kh1 {[%emt 0:00:51]} Nf6 {[%emt 0:03:18]} 21. f3 {[%emt 0:00:02]} Nxe4 {[%emt 0:00:14]} 22. Nxe4 {[%emt 0:00:05]} a5 {[%emt 0:00:18]} 23. bxa5 {[%emt 0:01:43]} Rxa5 {[%emt 0:00:04]} 24. Bd2 {[%emt 0:00:00]} Raa8 {[%emt 0:00:13]} 25. a4 {[%emt 0:00:05]} b6 {[%emt 0:00:22]} 26. a5 {[%emt 0:00:11]} bxa5 {[%emt 0:00:01]} 27. Rxa5 {[%emt 0:00:07]} Rab8 {[%emt 0:01:05]} 28. Bc3 {[%emt 0:02:35]} Bg5 {[%emt 0:01:52]} 29. Re1 {[%emt 0:00:03]} Rb3 {[%emt 0:00:36]} 30. Ra2 {[%emt 0:00:12]} h5 {[%emt 0:00:56]} 31. Rg2 {[%emt 0:01:10]} Bh6 {[%emt 0:00:34]} 32. Rf2 {[%emt 0:01:54]} Ra3 {[%emt 0:00:39]} 33. c5 {[%emt 0:01:17]} Nd4 {[%emt 0:00:58]} 34. cxd6 {[%emt 0:00:05]} cxd6 {[%emt 0:00:02]} 35. Qd1 {[%emt 0:00:22]} h4 {[%emt 0:00:35]} 36. gxh4 {[%emt 0:01:44]} Qh5 {[%emt 0:00:38]} 37. Bxd4 {[%emt 0:00:41]} exd4 {[%emt 0:00:01]} 38. Qxd4 {[%emt 0:00:06]} Raxf3 {[%emt 0:00:17]} 39. Ng3 {[%emt 0:00:11]} Qf7 {[%emt 0:00:12]} 40. Rfe2 {[%emt 0:00:01]} Ra3 {[%emt 0:01:18]} 41. Rf1 {[%emt 0:00:06]} Rf3 {[%emt 0:00:03]} 42. Rfe1 {[%emt 0:00:00]} Ra3 {[%emt 0:00:01]} 43. Qe4 {[%emt 0:00:05]} Ra5 {[%emt 0:00:17]} 44. Rd1 {[%emt 0:00:02]} Qf4 {[%emt 0:00:37]} 45. Kg2 {[%emt 0:00:05]} Ra4 {[%emt 0:00:07]} 46. Qe6+ {[%emt 0:00:04]} Qf7 {[%emt 0:00:07]} 47. Ne4 {[%emt 0:00:10]} Bf4 {[%emt 0:00:03]} 48. Rf1 {[%emt 0:00:01]} Qxe6 {[%emt 0:00:03]} 49. dxe6 {[%emt 0:00:01]} Be5 {[%emt 0:00:01]} 50. Ng5 {[%emt 0:00:07]} Re8 {[%emt 0:00:01]} 51. Ref2 {[%emt 0:00:01]} Rxh4 {[%emt 0:00:02]} 52. h3 {[%emt 0:00:01]} Rh5 {[%emt 0:00:02]} 53. Nf7 {[%emt 0:00:07]} Rxe6 {[%emt 0:00:00]} 54. Nxe5 {[%emt 0:00:02]} dxe5 {[%emt 0:00:01]} 55. Rf8+ {[%emt 0:00:00]} Kh7 {[%emt 0:00:00]} 56. Re1 {[%emt 0:00:03]} e4 {[%emt 0:00:01]} 57. Rf4 {[%emt 0:00:01]} e3 {[%emt 0:00:05]} 58. h4 {[%emt 0:00:01]} e2 {[%emt 0:00:03]} 59. Kf2 {[%emt 0:00:01]} Rhe5 {[%emt 0:00:01]} 60. Rg4 {[%emt 0:00:10]} Kh6 {[%emt 0:00:01]} 61. Rg3 {[%emt 0:00:02]} g6 {[%emt 0:00:02]} 62. Rd3 {[%emt 0:00:01]} Re4 {[%emt 0:00:01]} 63. Rd8 {[%emt 0:00:04]} Kh5 {[%emt 0:00:02]} 64. Rh8+ {[%emt 0:00:02]} Kg4 {[%emt 0:00:00]} 65. Rg1+ {[%emt 0:00:00]} Kf5 {[%emt 0:00:07]} 66. Rf8+ {[%emt 0:00:05]} Ke5 {[%emt 0:00:02]} 67. Rg5+ {[%emt 0:00:08]} Kd6 {[%emt 0:00:03]} 68. Ke1 {[%emt 0:00:01]} Ra4 {[%emt 0:00:03]} 69. Rd8+ {[%emt 0:00:05]} Ke7 {[%emt 0:00:05]} 0-1

[Event "AI Cup Div-3 2023"]
[Site "Online"]
[Date "2023.09.27"]
[Round "54.2"]
[White "Radjabov, Teimour"]
[Black "Tomashevsky, Evgeny"]
[Result "1-0"]
[Annotator "TA"]
[ECO "B14"]
[WhiteElo "2745"]
[BlackElo "2694"]
[PlyCount "101"]
[EventDate "2023.09.18"]
[EventType "k.o."]
[EventCountry "NET"]
[SourceTitle "playchess.com"]
[Source "ChessBase"]
[SourceQuality "1"]
[TimeControl "900+3"]

{[%evp 14,101,10,0,0,0,0,-11,0,-25,-3,-26,-4,-11,-3,-13,0,-9,0,0,28,0,0,0,0,0,0,0,0,0,49,49,59,54,45,50,52,48,58,48,58,29,29,29,33,35,36,15,50,0,43,43,43,53,54,0,0,0,0,0,0,0,34,36,569,498,498,268,29963,29964,29965,29965,29964,0,0,0,29965,29966,29965,29967,29967,29968,29969,29971,29971,29972,29972,29973,29973,12355]} 1. Nf3 {[%emt 0:00:05]} d5 {[%emt 0:00:08]} 2. d4 {[%emt 0:00:01]} Nf6 {[%emt 0:00:02]} 3. c4 {[%emt 0:00:01]} e6 {[%emt 0:00:03]} 4. Nc3 {[%emt 0:00:06]} c5 {[%emt 0:00:10]} 5. e3 {[%emt 0:00:02]} Nc6 {[%emt 0:00:06]} 6. cxd5 {[%emt 0:00:01]} exd5 {[%emt 0:00:01]} 7. Be2 {[%emt 0:00:01][%cal Bf1e2,Be2b5,Bb5d3][%mdl 32]} cxd4 {[%emt 0:00:08]} 8. exd4 {[%emt 0:00:09]} h6 {[%emt 0:00:09] B14: Caro-Kann: Panov-Botvinnik Attack with 5...e6 and 5...g6.} 9. O-O {[%emt 0:00:03]} Bd6 {[%emt 0:00:13]} 10. h3 $5 {[%emt 0:00:32][%mdl 4] Leaves trodden paths.} O-O {[%emt 0:00:07] [#] The position is equal.} 11. Bb5 $146 {[%emt 0:00:01]} ({Predecessor:} 11. Be3 a6 12. a3 Ne7 13. Qd2 Ng6 14. Bd3 Be6 15. Bxg6 fxg6 16. Rfe1 Bf5 17. Ne5 {1-0 Prithu,G (2444)-Kubatko,I (2257) Titled Tuesday intern op 28th Dec blitz 2021 (5)}) 11... Re8 {[%emt 0:01:16]} 12. Be3 {[%emt 0:00:11]} Bd7 {[%emt 0:01:24]} 13. Rc1 {[%emt 0:00:04]} Rc8 {[%emt 0:00:05]} 14. Re1 {[%emt 0:00:03]} a6 {[%emt 0:02:08]} 15. Bd3 {[%emt 0:00:05]} Rc7 {[%emt 0:01:38]} 16. Bb1 {[%emt 0:00:14]} Bc8 {[%emt 0:01:05]} 17. Qc2 {[%emt 0:00:30][%cal Oc3d5]} (17. Ne5 $5) 17... Ne7 {[%emt 0:00:40]} 18. Qd2 {[%emt 0:01:34]} Bf5 {[%emt 0:00:16]} 19. Bf4 {[%emt 0:00:37]} Bxb1 {[%emt 0:00:10]} 20. Rxb1 {[%emt 0:00:01]} Rc8 {[%emt 0:00:18]} 21. Be5 {[%emt 0:00:09]} Bxe5 {[%emt 0:01:56]} (21... Nh7 $1 $11) 22. dxe5 $14 {[%emt 0:01:00]} Ne4 {[%emt 0:00:02]} 23. Nxe4 {[%emt 0:03:42]} dxe4 {[%emt 0:00:00]} 24. Qxd8 {[%emt 0:00:01]} Rexd8 {[%emt 0:00:00]} 25. Rxe4 {[%emt 0:00:01]} Rc2 {[%emt 0:00:02]} 26. a4 {[%emt 0:00:37]} Nc6 {[%emt 0:00:33]} 27. b3 {[%emt 0:00:45][%cal Bb2b3,Bb3b4][%mdl 32]} Rc3 {[%emt 0:00:31]} 28. b4 {[%emt 0:01:26]} b5 {[%emt 0:00:04]} 29. axb5 {[%emt 0:00:09]} axb5 {[%emt 0:00:01]} 30. Kf1 {[%emt 0:00:41]} Rdd3 {[%emt 0:01:32]} 31. Ke2 {[%emt 0:00:31]} (31. e6 $14 fxe6 32. Rxe6) 31... Rb3 {[%emt 0:00:13] Threatens to win with ...Rxf3.} 32. Rc1 {[%emt 0:00:17]} Nxb4 {[%emt 0:00:24] [#]} 33. Rxb4 $1 {[%emt 0:01:23]} Rxf3 {[%emt 0:00:02][%mdl 4096] Endgame KRR-KRR} 34. Rc8+ {[%emt 0:00:00]} ({Better is} 34. Rb1 $1 $14 Rxb1 35. Rxb1) 34... Kh7 $11 {[%emt 0:00:02]} 35. Rxb3 {[%emt 0:00:00]} Rxb3 {[%emt 0:00:02] KR-KR} 36. Rf8 {[%emt 0:00:00]} Kg6 {[%emt 0:00:38]} 37. f4 {[%emt 0:00:01] aiming for g4.} h5 {[%emt 0:00:02]} 38. g4 {[%emt 0:00:02]} Rxh3 $2 {[%emt 0:00:01][%mdl 8192]} (38... hxg4 $14 39. hxg4 Rb2+ 40. Kf3 Rb3+ 41. Ke2 Rb4) 39. f5+ $18 {[%emt 0:00:02]} Kg5 {[%emt 0:00:03] [#]} 40. e6 $1 {[%emt 0:00:14] And now e7 would win.} fxe6 {[%emt 0:00:07]} (40... Kxg4 $2 41. e7 Rh2+ 42. Kd3 Rh3+ 43. Kd4 $18) (40... Rh2+ $18 41. Kd3 Rh3+ 42. Kd2 Rh2+ 43. Kd3 Rh3+ 44. Ke2 Rh2+ 45. Kd1 Rh3) 41. fxe6 {[%emt 0:00:02]} Rh2+ {[%emt 0:00:01]} 42. Kd3 {[%emt 0:00:12]} Rh3+ {[%emt 0:00:02]} 43. Ke2 $2 {[%emt 0:00:08]} (43. Kd4 {mates} Rh1 44. e7 Rd1+ 45. Kc3 b4+ 46. Kc2 (46. Kxb4 Re1 $11) 46... Re1 47. e8=Q Rxe8 48. Rxe8) 43... Rh2+ $11 {[%emt 0:00:03]} 44. Kd3 $2 {[%emt 0:00:30][%mdl 8192]} (44. Ke3 $11 Rh1 45. Kd2 Rh2+ 46. Kd1 Rh1+ 47. Kd2 Rh2+ 48. Kd3 Rh3+ 49. Ke2) 44... Rh3+ {[%emt 0:00:02]} 45. Kd4 {[%emt 0:00:13] White mates.} Rh1 {[%emt 0:00:01]} 46. e7 {[%emt 0:00:13]} Rd1+ {[%emt 0:00:02] [#]} 47. Kc3 $1 {[%emt 0:00:00]} Re1 {[%emt 0:00:02]} 48. e8=Q {[%emt 0:00:03]} ({And not} 48. e8=B hxg4 49. Kd2 Ra1 $11) 48... Rxe8 {[%emt 0:00:01]} 49. Rxe8 {[%emt 0:00:01]} Kxg4 {[%emt 0:00:01]} 50. Kd2 {[%emt 0:00:04]} h4 {[%emt 0:00:20]} 51. Ke1 {[%emt 0:00:05] Weighted Error Value: White=0.17 (very precise) /Black=0.33} (51. Ke3 $142 g5 52. Rg8 b4 53. Kf2 Kf5 54. Rb8 g4 55. Rxb4 Kg5 56. Rb8) 1-0

[Event "AI Cup Div-3 2023"]
[Site "Online"]
[Date "2023.09.27"]
[Round "54.2"]
[White "Durarbayli, Vasif"]
[Black "Xiong, Jeffery"]
[Result "1-0"]
[Annotator "ChessBase"]
[ECO "C41"]
[WhiteElo "2625"]
[BlackElo "2693"]
[PlyCount "49"]
[EventDate "2023.09.18"]
[EventType "k.o."]
[EventCountry "NET"]
[SourceTitle "playchess.com"]
[Source "ChessBase"]
[SourceQuality "1"]
[TimeControl "900+3"]

1. e4 {[%emt 0:00:03]} d6 {[%emt 0:00:03]} 2. d4 {[%emt 0:00:02]} Nf6 {[%emt 0:00:01]} 3. Nc3 {[%emt 0:00:01]} Nbd7 {[%emt 0:00:01]} 4. Nf3 {[%emt 0:00:24]} e5 {[%emt 0:00:03]} 5. h3 {[%emt 0:00:10]} Be7 {[%emt 0:00:23]} 6. Be3 {[%emt 0:00:03]} c6 {[%emt 0:00:15]} 7. g4 {[%emt 0:00:13]} h6 {[%emt 0:00:10]} 8. Rg1 {[%emt 0:00:36]} b5 {[%emt 0:00:08]} 9. a3 {[%emt 0:00:10]} Bb7 {[%emt 0:00:10]} 10. h4 {[%emt 0:00:12]} h5 {[%emt 0:03:27]} 11. gxh5 {[%emt 0:00:03]} Nxh5 {[%emt 0:00:05]} 12. Bh3 {[%emt 0:00:11]} Bf6 {[%emt 0:00:20]} 13. Qe2 {[%emt 0:02:02]} Nb6 {[%emt 0:01:55]} 14. O-O-O {[%emt 0:01:20]} Qe7 {[%emt 0:00:03]} 15. dxe5 {[%emt 0:00:08]} dxe5 {[%emt 0:00:03]} 16. Bxb6 {[%emt 0:00:14]} axb6 {[%emt 0:00:03]} 17. Rd7 {[%emt 0:00:05]} Qxd7 {[%emt 0:00:26]} 18. Bxd7+ {[%emt 0:00:00]} Kxd7 {[%emt 0:00:00]} 19. Ng5 {[%emt 0:00:19]} Ke7 {[%emt 0:00:17]} 20. Qe3 {[%emt 0:00:15]} c5 {[%emt 0:02:34]} 21. Nxb5 {[%emt 0:00:38]} Nf4 {[%emt 0:00:06]} 22. Rd1 {[%emt 0:00:31]} Rxh4 {[%emt 0:00:18]} 23. Qd2 {[%emt 0:01:07]} Kf8 {[%emt 0:00:02]} 24. Qd6+ {[%emt 0:01:00]} Kg8 {[%emt 0:00:18]} 25. Qxb6 {[%emt 0:00:42]} 1-0

[Event "AI Cup Div-3 2023"]
[Site "Online"]
[Date "2023.09.27"]
[Round "54.2"]
[White "Demchenko, Anton"]
[Black "Martinez Alcantara, Jose Eduardo"]
[Result "1/2-1/2"]
[Annotator "ChessBase"]
[ECO "B90"]
[WhiteElo "2608"]
[BlackElo "2611"]
[PlyCount "83"]
[EventDate "2023.09.18"]
[EventType "k.o."]
[EventCountry "NET"]
[SourceTitle "playchess.com"]
[Source "ChessBase"]
[SourceQuality "1"]
[TimeControl "900+3"]

1. e4 {[%emt 0:00:03]} c5 {[%emt 0:00:04]} 2. Nf3 {[%emt 0:00:02]} d6 {[%emt 0:00:00]} 3. d4 {[%emt 0:00:01]} cxd4 {[%emt 0:00:00]} 4. Nxd4 {[%emt 0:00:00]} Nf6 {[%emt 0:00:01]} 5. Nc3 {[%emt 0:00:01]} a6 {[%emt 0:00:00]} 6. Bd3 {[%emt 0:00:01]} e5 {[%emt 0:00:04]} 7. Nde2 {[%emt 0:00:01]} Be6 {[%emt 0:00:00]} 8. O-O {[%emt 0:00:02]} Be7 {[%emt 0:00:01]} 9. h3 {[%emt 0:00:01]} O-O {[%emt 0:00:01]} 10. f4 {[%emt 0:00:01]} b5 {[%emt 0:00:22]} 11. Be3 {[%emt 0:01:24]} Qc7 {[%emt 0:00:26]} 12. Ng3 {[%emt 0:01:12]} Nbd7 {[%emt 0:00:21]} 13. a3 {[%emt 0:00:10]} Rad8 {[%emt 0:00:39]} 14. a4 {[%emt 0:01:21]} b4 {[%emt 0:00:20]} 15. Nd5 {[%emt 0:00:01]} Bxd5 {[%emt 0:00:01]} 16. exd5 {[%emt 0:00:01]} g6 {[%emt 0:00:02]} 17. Bxa6 {[%emt 0:00:11]} exf4 {[%emt 0:00:02]} 18. Rxf4 {[%emt 0:00:06]} Nb6 {[%emt 0:00:08]} 19. Rf3 {[%emt 0:00:33]} Nfxd5 {[%emt 0:00:20]} 20. Bh6 {[%emt 0:00:52]} Rfe8 {[%emt 0:00:23]} 21. Bb5 {[%emt 0:00:03]} Bf6 {[%emt 0:00:10]} 22. Bxe8 {[%emt 0:00:08]} Rxe8 {[%emt 0:00:00]} 23. a5 {[%emt 0:01:10]} Qc5+ {[%emt 0:00:01]} 24. Kh1 {[%emt 0:00:01]} Nc4 {[%emt 0:00:00]} 25. a6 {[%emt 0:00:18]} Bxb2 {[%emt 0:00:04]} 26. a7 {[%emt 0:00:01]} Na3 {[%emt 0:00:38]} 27. Qf1 {[%emt 0:02:48]} Qxa7 {[%emt 0:00:49]} 28. Re1 {[%emt 0:00:26]} Rxe1 {[%emt 0:00:02]} 29. Qxe1 {[%emt 0:00:00]} Be5 {[%emt 0:00:00]} 30. Qe4 {[%emt 0:00:17]} Qd4 {[%emt 0:01:32]} 31. Qxd4 {[%emt 0:00:44]} Bxd4 {[%emt 0:00:00]} 32. Rd3 {[%emt 0:00:00]} Nxc2 {[%emt 0:00:01]} 33. Ne2 {[%emt 0:00:02]} Be3 {[%emt 0:00:01]} 34. Bxe3 {[%emt 0:00:19]} Ncxe3 {[%emt 0:00:00]} 35. Kg1 {[%emt 0:00:12]} Kg7 {[%emt 0:00:16]} 36. Nc1 {[%emt 0:00:43]} f5 {[%emt 0:00:06]} 37. g3 {[%emt 0:00:06]} Kf6 {[%emt 0:00:17]} 38. Na2 {[%emt 0:00:08]} g5 {[%emt 0:00:25]} 39. Nxb4 {[%emt 0:00:09]} Nxb4 {[%emt 0:00:00]} 40. Rxe3 {[%emt 0:00:01]} d5 {[%emt 0:00:00]} 41. Rb3 {[%emt 0:00:18]} Nc2 {[%emt 0:00:03]} 42. Kf2 {[%emt 0:00:12]} 1/2-1/2

[Event "AI Cup Div-3 2023"]
[Site "Online"]
[Date "2023.09.27"]
[Round "54.2"]
[White "Kovalev, Vladislav"]
[Black "Meier, Georg"]
[Result "0-1"]
[Annotator "ChessBase"]
[ECO "C10"]
[WhiteElo "2582"]
[BlackElo "2628"]
[PlyCount "126"]
[EventDate "2023.09.18"]
[EventType "k.o."]
[EventCountry "NET"]
[SourceTitle "playchess.com"]
[Source "ChessBase"]
[SourceQuality "1"]
[TimeControl "900+3"]

1. e4 {[%emt 0:00:03]} e6 {[%emt 0:00:03]} 2. d4 {[%emt 0:00:01]} d5 {[%emt 0:00:01]} 3. Nc3 {[%emt 0:00:01]} dxe4 {[%emt 0:00:01]} 4. Nxe4 {[%emt 0:00:00]} Nd7 {[%emt 0:00:00]} 5. Nf3 {[%emt 0:00:03]} Ngf6 {[%emt 0:00:01]} 6. Nxf6+ {[%emt 0:00:05]} Nxf6 {[%emt 0:00:00]} 7. Ne5 {[%emt 0:00:00]} Bd6 {[%emt 0:00:05]} 8. Bg5 {[%emt 0:00:16]} h6 {[%emt 0:00:02]} 9. Bh4 {[%emt 0:00:01]} O-O {[%emt 0:00:03]} 10. Bd3 {[%emt 0:00:07]} c5 {[%emt 0:00:01]} 11. O-O {[%emt 0:00:07]} cxd4 {[%emt 0:00:06]} 12. f4 {[%emt 0:00:00]} Be7 {[%emt 0:00:12]} 13. Qf3 {[%emt 0:00:02]} Nd5 {[%emt 0:00:32]} 14. Bf2 {[%emt 0:00:01]} Qb6 {[%emt 0:01:10]} 15. c3 {[%emt 0:03:30]} Nf6 {[%emt 0:04:38]} 16. Kh1 {[%emt 0:00:58]} Bd7 {[%emt 0:01:06]} 17. Bxd4 {[%emt 0:00:17]} Bc5 {[%emt 0:00:15]} 18. Nc4 {[%emt 0:00:56]} Qc7 {[%emt 0:00:24]} 19. Bxf6 {[%emt 0:01:03]} gxf6 {[%emt 0:00:00]} 20. Qg4+ {[%emt 0:00:04]} Kh8 {[%emt 0:00:01]} 21. Qh4 {[%emt 0:00:18]} Kg7 {[%emt 0:00:05]} 22. Rf3 {[%emt 0:00:03]} Rg8 {[%emt 0:00:19]} 23. Rg3+ {[%emt 0:01:02]} Kf8 {[%emt 0:00:03]} 24. Rxg8+ {[%emt 0:00:27]} Kxg8 {[%emt 0:00:02]} 25. Qxh6 {[%emt 0:00:38]} f5 {[%emt 0:00:14]} 26. Qg5+ {[%emt 0:00:10]} Kf8 {[%emt 0:01:47]} 27. Ne5 {[%emt 0:00:02]} Bc6 {[%emt 0:00:31]} 28. Qh6+ {[%emt 0:01:53]} Kg8 {[%emt 0:01:05]} 29. Qg5+ {[%emt 0:00:36]} Kf8 {[%emt 0:00:11]} 30. b4 {[%emt 0:00:06]} Bd6 {[%emt 0:00:09]} 31. Qh6+ {[%emt 0:00:13]} Kg8 {[%emt 0:00:08]} 32. Re1 {[%emt 0:00:29]} Bf8 {[%emt 0:00:47]} 33. Qh5 {[%emt 0:00:06]} Bg7 {[%emt 0:00:19]} 34. Re3 {[%emt 0:00:12]} Kf8 {[%emt 0:00:28]} 35. h3 {[%emt 0:01:16]} Rd8 {[%emt 0:00:54]} 36. Qe2 {[%emt 0:00:20]} Be8 {[%emt 0:00:09]} 37. Bc4 {[%emt 0:00:09]} a5 {[%emt 0:00:08]} 38. a3 {[%emt 0:00:15]} axb4 {[%emt 0:00:09]} 39. axb4 {[%emt 0:00:00]} Rc8 {[%emt 0:00:01]} 40. Bb3 {[%emt 0:00:06]} Rd8 {[%emt 0:00:09]} 41. Rg3 {[%emt 0:00:09]} Bc6 {[%emt 0:00:09]} 42. Ng6+ {[%emt 0:00:26]} Kg8 {[%emt 0:00:19]} 43. Qh5 {[%emt 0:00:11]} Bd5 {[%emt 0:00:11]} 44. Bxd5 {[%emt 0:00:20]} Rxd5 {[%emt 0:00:00]} 45. Ne5 {[%emt 0:00:01]} Kf8 {[%emt 0:00:01]} 46. Qh7 {[%emt 0:00:11]} Bxe5 {[%emt 0:00:03]} 47. fxe5 {[%emt 0:00:01]} Rd1+ {[%emt 0:00:09]} 48. Kh2 {[%emt 0:00:01]} Qxe5 {[%emt 0:00:00]} 49. Qg8+ {[%emt 0:00:09]} Ke7 {[%emt 0:00:02]} 50. Qc8 {[%emt 0:00:03]} Rd3 {[%emt 0:00:08]} 51. Qg8 {[%emt 0:00:05]} Rxc3 {[%emt 0:00:02]} 52. h4 {[%emt 0:00:00]} Qxg3+ {[%emt 0:00:02]} 53. Qxg3 {[%emt 0:00:01]} Rxg3 {[%emt 0:00:00]} 54. Kxg3 {[%emt 0:00:00]} e5 {[%emt 0:00:01]} 55. Kf3 {[%emt 0:00:01]} f4 {[%emt 0:00:01]} 56. Ke4 {[%emt 0:00:09]} f6 {[%emt 0:00:01]} 57. Kf5 {[%emt 0:00:01]} Kf7 {[%emt 0:00:02]} 58. b5 {[%emt 0:00:03]} b6 {[%emt 0:00:02]} 59. h5 {[%emt 0:00:03]} Kg7 {[%emt 0:00:01]} 60. Ke4 {[%emt 0:00:01]} Kh6 {[%emt 0:00:01]} 61. Kd5 {[%emt 0:00:00]} Kxh5 {[%emt 0:00:04]} 62. Kc6 {[%emt 0:00:00]} e4 {[%emt 0:00:01]} 63. Kxb6 {[%emt 0:00:01]} e3 {[%emt 0:00:02]} 0-1

[Event "AI Cup Div-3 2023"]
[Site "Online"]
[Date "2023.09.27"]
[Round "54.3"]
[White "Tomashevsky, Evgeny"]
[Black "Radjabov, Teimour"]
[Result "1-0"]
[Annotator "TA"]
[ECO "A14"]
[WhiteElo "2694"]
[BlackElo "2745"]
[PlyCount "60"]
[EventDate "2023.09.18"]
[EventType "k.o."]
[EventCountry "NET"]
[SourceTitle "playchess.com"]
[Source "ChessBase"]
[SourceQuality "1"]
[TimeControl "900+3"]

{[%evp 12,60,13,0,0,0,0,-12,0,0,8,-18,-16,-18,-16,-28,-23,-26,-22,-24,0,-13,0,-10,-5,-29,0,0,16,0,45,37,16,27,98,58,113,126,125,114,126,126,94,122,115,115,115,116,169,162,783]} 1. c4 {[%emt 0:00:06]} Nf6 {[%emt 0:03:10]} 2. Nf3 {[%emt 0:00:12]} e6 {[%emt 0:00:04]} 3. g3 {[%emt 0:00:05]} d5 {[%emt 0:00:04]} 4. Bg2 {[%emt 0:00:04]} Be7 {[%emt 0:00:04]} 5. O-O {[%emt 0:00:05]} O-O {[%emt 0:00:04]} 6. b3 {[%emt 0:00:04]} c5 {[%emt 0:00:14]} 7. Bb2 {[%emt 0:00:31] 7.cxd5 is the hot move.} d4 {[%emt 0:00:10] A14: English Opening: 1...e6 with b3 by White.} 8. b4 {[%emt 0:00:04]} Re8 {[%emt 0:00:39]} 9. d3 {[%emt 0:00:09]} a5 {[%emt 0:00:18] [#] The position is equal.} 10. b5 $146 {[%emt 0:00:15]} ({Predecessor:} 10. bxc5 Nc6 11. Na3 Bxc5 12. Nb5 e5 13. Nd2 a4 14. Ba3 Bxa3 15. Nxa3 Qe7 16. Qc1 {0-1 Ibarra Jerez,J (2570)-Wagner,D (2584) Titled Tuesday intern op 21st Jun Late blitz 2022 (5)}) 10... Bd6 {[%emt 0:00:29]} 11. e4 {[%emt 0:00:38] And now e5 would win.} e5 {[%emt 0:00:08]} 12. Bc1 {[%emt 0:00:04]} Nbd7 {[%emt 0:00:13]} 13. Nh4 {[%emt 0:00:08]} g6 {[%emt 0:00:08]} 14. a4 {[%emt 0:00:32]} Nf8 {[%emt 0:00:14]} 15. Ra2 {[%emt 0:00:11]} Be7 {[%emt 0:01:01]} 16. Nd2 {[%emt 0:00:35]} Bg4 {[%emt 0:00:35]} 17. Qe1 {[%emt 0:00:53]} Nh5 {[%emt 0:00:09]} 18. Bf3 {[%emt 0:00:44]} Bxf3 {[%emt 0:00:48]} 19. Ndxf3 {[%emt 0:00:10]} Ne6 {[%emt 0:00:24]} 20. Ng2 {[%emt 0:00:14]} Bf6 {[%emt 0:00:54]} 21. Kh1 {[%emt 0:00:08]} Qd7 {[%emt 0:00:10]} 22. Ng1 {[%emt 0:00:20]} Bg7 {[%emt 0:00:10]} (22... Bd8 $11) 23. Qd1 $16 {[%emt 0:00:27]} Rf8 {[%emt 0:00:16]} (23... Nd8 $14) 24. f4 $1 {[%emt 0:01:08]} exf4 {[%emt 0:00:07]} 25. gxf4 {[%emt 0:00:04]} f5 {[%emt 0:00:04] [#]} 26. exf5 {[%emt 0:00:04]} Rxf5 {[%emt 0:00:04] [#]} 27. Nh4 $1 {[%emt 0:00:04]} Rxf4 {[%emt 0:00:19]} 28. Bxf4 {[%emt 0:00:09]} Nexf4 {[%emt 0:00:03]} 29. Ng2 {[%emt 0:00:28]} Nxg2 {[%emt 0:00:11]} (29... g5 $16 {is a better defense.}) 30. Rxg2 $18 {[%emt 0:00:05]} Bh6 $2 {[%emt 0:00:03] Weighted Error Value: White=0.06 (flawless) /Black=0.17 (very precise)} (30... Re8 31. Rgf2 Re7) 1-0

[Event "AI Cup Div-3 2023"]
[Site "Online"]
[Date "2023.09.27"]
[Round "55.1"]
[White "Meier, Georg"]
[Black "Demchenko, Anton"]
[Result "0-1"]
[Annotator "ChessBase"]
[ECO "A49"]
[WhiteElo "2628"]
[BlackElo "2608"]
[PlyCount "82"]
[EventDate "2023.09.18"]
[EventType "k.o."]
[EventCountry "NET"]
[SourceTitle "playchess.com"]
[Source "ChessBase"]
[SourceQuality "1"]
[TimeControl "900+3"]

1. Nf3 {[%emt 0:00:03]} Nf6 {[%emt 0:00:06]} 2. g3 {[%emt 0:00:04]} g6 {[%emt 0:00:01]} 3. b3 {[%emt 0:00:01]} Bg7 {[%emt 0:00:02]} 4. Bb2 {[%emt 0:00:00]} d6 {[%emt 0:00:01]} 5. d4 {[%emt 0:00:02]} O-O {[%emt 0:00:04]} 6. Bg2 {[%emt 0:00:02]} b5 {[%emt 0:00:02]} 7. O-O {[%emt 0:00:05]} Bb7 {[%emt 0:00:03]} 8. Nbd2 {[%emt 0:00:15]} Nbd7 {[%emt 0:00:03]} 9. a3 {[%emt 0:00:14]} c5 {[%emt 0:00:16]} 10. c4 {[%emt 0:00:06]} bxc4 {[%emt 0:00:04]} 11. Nxc4 {[%emt 0:00:02]} a5 {[%emt 0:00:10]} 12. Rc1 {[%emt 0:00:09]} Ra6 {[%emt 0:00:04]} 13. dxc5 {[%emt 0:00:12]} Nxc5 {[%emt 0:00:05]} 14. b4 {[%emt 0:00:01]} axb4 {[%emt 0:00:07]} 15. axb4 {[%emt 0:00:00]} Ne6 {[%emt 0:00:37]} 16. b5 {[%emt 0:06:17]} Ra2 {[%emt 0:01:53]} 17. Qb3 {[%emt 0:01:24]} Ra8 {[%emt 0:00:04]} 18. Nd4 {[%emt 0:00:15]} Nxd4 {[%emt 0:01:13]} 19. Bxd4 {[%emt 0:00:02]} Bxg2 {[%emt 0:00:00]} 20. Kxg2 {[%emt 0:00:00]} Rb8 {[%emt 0:00:24]} 21. Ba7 {[%emt 0:00:25]} Rxb5 {[%emt 0:01:25]} 22. Qxb5 {[%emt 0:00:04]} Qa8+ {[%emt 0:00:00]} 23. f3 {[%emt 0:02:09]} Qxa7 {[%emt 0:00:04]} 24. Nb6 {[%emt 0:00:02]} Bh6 {[%emt 0:01:03]} 25. Rc8 {[%emt 0:02:05]} Rxc8 {[%emt 0:00:33]} 26. Nxc8 {[%emt 0:00:00]} Qc7 {[%emt 0:00:00]} 27. Nb6 {[%emt 0:00:04]} e6 {[%emt 0:01:10]} 28. Qb2 {[%emt 0:00:05]} Ne8 {[%emt 0:04:01]} 29. Qb5 {[%emt 0:00:08]} Kf8 {[%emt 0:00:13]} 30. Ra1 {[%emt 0:00:13]} Nf6 {[%emt 0:00:21]} 31. Qb2 {[%emt 0:00:39]} Kg7 {[%emt 0:00:44]} 32. Qd4 {[%emt 0:00:52]} e5 {[%emt 0:00:24]} 33. Qb4 {[%emt 0:00:13]} Be3 {[%emt 0:00:28]} 34. Nc4 {[%emt 0:00:15]} Bc5 {[%emt 0:00:01]} 35. Qb5 {[%emt 0:00:04]} e4 {[%emt 0:00:06]} 36. Ra2 {[%emt 0:00:04]} Bd4 {[%emt 0:00:12]} 37. Nd2 {[%emt 0:00:10]} d5 {[%emt 0:00:23]} 38. Nb3 {[%emt 0:00:01]} Be3 {[%emt 0:00:02]} 39. Qb4 {[%emt 0:00:02]} h5 {[%emt 0:00:06]} 40. Ra8 {[%emt 0:00:05]} Nd7 {[%emt 0:00:15]} 41. fxe4 {[%emt 0:00:01]} Qc2 {[%emt 0:00:02]} 0-1